Cogmind - Beta 15 *** ADVENTURER MODE // 2025.07.27 @ 16:41:49 Player: LegoMDS Result: Destroyed by 9B-I9A(R) with Subdweller Machine Gun Performance ------------- Evolutions (0) 0 Regions Visited (3) 600 Robots Destroyed (27) 135 Value Destroyed (706) 706 Prototype IDs (0) 0 Alien Tech Used (0) 0 Bonus (0) 0 TOTAL SCORE: 1441 Bonus ------- None Cogmind --------- Core Integrity 0/250 Matter 300/300 Energy 197/200 System Corruption 1% Temperature Cool (0) Movement Treading (160) Location -10/Subcaves Parts ------- > --- POWER (1) -------- Subdweller Power Source > --- PROPULSION (2) --- Spiked Treads > --- UTILITY (2) ------ Medium Storage Unit > --- WEAPON (2) ------- Subdweller Laser > --- INVENTORY (10) --- Subdweller Monowheel Subdweller Monowheel Improved Heat Sink Subdweller Optics Subdweller Optics Subdweller Optics Experimental Sensor Array Makeshift Hacking Suite Subdweller Machine Gun Subdweller Machine Gun Peak State ------------ > --- POWER ------------ Light Nuclear Core > --- PROPULSION ------- Aluminum Leg Makeshift Leg > --- UTILITY ---------- Medium Storage Unit Makeshift Light Armor Plating > --- WEAPON ----------- Particle Gun Assault Rifle > --- INVENTORY -------- Ion Engine Aluminum Leg Aluminum Leg Aluminum Leg Flight Unit Flight Unit Improved Heat Sink Experimental Sensor Array Propulsion Shielding Assault Rifle [Rating: 18] Favorites ----------- Power Ion Engine Engine Ion Engine Power Core Light Nuclear Core Propulsion Aluminum Leg Treads Spiked Treads Leg Aluminum Leg Wheel Subdweller Monowheel Utility Medium Storage Unit Storage Medium Storage Unit Protection Makeshift Light Armor Plating Weapon Assault Rifle Energy Gun Particle Gun Ballistic Gun Assault Rifle Special Weapon Flamer Build | -11 -10 -10 -10 ------- Run | Yrd Mat Min Sub Slots Evolved . | . . . . Power . | . . . . Propulsion . | . . . . Utility . | . . . . Weapon . | . . . . Parts Attached 24 | 6 3 1 14 Power 4 | 1 1 . 2 Engine 3 | 1 . . 2 Core 1 | . 1 . . Reactor . | . . . . Propulsion 8 | 2 . . 6 Treads 1 | . . . 1 Leg 5 | 2 . . 3 Wheel 2 | . . . 2 Hover . | . . . . Flight . | . . . . Utility 4 | 1 1 1 1 Device . | . . . . Storage 2 | 1 1 . . Processor . | . . . . Hackware . | . . . . Protection 2 | . . 1 1 Artifact . | . . . . Weapon 8 | 2 1 . 5 Energy Gun 3 | 1 1 . 1 Energy Cannon . | . . . . Ballistic Gun 4 | 1 . . 3 Ballistic Cannon . | . . . . Launcher . | . . . . Special Weapon 1 | . . . 1 Impact Weapon . | . . . . Slashing Weapon . | . . . . Piercing Weapon . | . . . . Special Melee Weapon . | . . . . Unidentified Prototypes . | . . . . Parts Lost 11 | . . . 11 Power 2 | . . . 2 Propulsion 3 | . . . 3 Utility 2 | . . . 2 Weapon 4 | . . . 4 Highest Loss Streak 3 | . . . 3 To Critical Strikes . | . . . . Average Backups 8 | 1 3 9 9 Power . | . 1 1 . Propulsion 2 | . 1 4 2 Utility 3 | . . 2 5 Weapon 1 | 1 1 1 1 Tool/Special . | . . . . Unused Backups 13 | . . 1 12 Power . | . . . . Propulsion 3 | . . . 3 Utility 9 | . . 1 8 Weapon 1 | . . . 1 Tool/Special . | . . . . Average Slot Usage (%) 84 | . 85 96 81 Engine 6 | . 11 . 7 Core 6 | . 2 14 5 Leg 22 | . 28 28 19 Wheel 1 | . . . 1 Storage 14 | . 14 14 14 Protection 10 | . . 10 13 Energy Gun 9 | . 14 14 6 Ballistic Gun 12 | . 14 14 11 Peak Build Rating 18 | 6 10 12 18 Average Rating 11 | 3 7 11 12 On Entrance 7 | . 6 10 12 Naked Turns . | . . . . Heaviest Build 27 | 13 20 23 27 Greatest Support 30 | 20 20 20 30 Greatest Overweight (x) 7 | . . 1 7 Average Overweight (x) . | . . . . Largest Inventory Capacity 10 | 8 10 10 10 Average Capacity 9 | 6 8 10 10 Most Carried 10 | 5 8 10 10 Average Carried 8 | 2 3 9 9 Final Capacity 10 | 8 10 10 10 Final Carried 10 | 2 8 10 10 Class Distribution -------------------- 82% | Mutant 17% | Scavenger-Mutant Dominant Class ---------------- Mutant | -10/Materials Mutant | -10/Mines Mutant | -10/Subcaves Resources | -11 -10 -10 -10 ----------- Run | Yrd Mat Min Sub Matter Collected 608 | 220 86 48 254 Remotely . | . . . . Salvage Created 884 | . 175 168 541 Parts 63 | . 20 8 35 Haulers Intercepted . | . . . . Recyclers Shooed 1 | . . 1 . Parts Field Recycled . | . . . . Retrieved Matter . | . . . . Parts Self-Destructed 16 | . . . 16 Prevented . | . . . . Kills | -11 -10 -10 -10 ------- Run | Yrd Mat Min Sub Combat Hostiles Destroyed 21 | . 2 2 17 Guns 21 | . 2 2 17 Classes Destroyed 8 | . 4 1 3 Worker 2 | . 2 . . Builder 1 | . 1 . . Recycler 1 | . . 1 . Watcher 2 | . 2 . . Swarmer 6 | . . . 6 Grunt 5 | . 2 2 1 Sentry 1 | . . . 1 Subdweller 9 | . . . 9 Best Kill Streak 5 | . 5 3 3 Combat Bots Only 3 | . 2 2 3 Max Kills in Single Turn 2 | . 2 1 1 Gunslinging . | . . . . Exploded . | . . . . Melee . | . . . . Uniques/NPCs Destroyed . | . . . . Combat | -11 -10 -10 -10 -------- Run | Yrd Mat Min Sub Hostile Shots Fired 198 | . 9 8 181 Missed 60 | . 5 1 54 Hits 138 | . 4 7 127 Projectile 138 | . 4 7 127 Critical Strikes 3 | . . . 3 Damage Taken 1695 | . 36 68 1591 Core 251 | . 11 . 240 Absorbed by Shields . | . . . . Ignored by Resistances 493 | . 12 20 461 Regen/Repaired (Parts) 21 | . 21 . . Core Remaining (%) 100 | 100 . . . Volleys Fired 100 | . 12 6 82 Largest 2 | . 2 2 2 Hottest 160 | . 60 85 160 Shots Fired 139 | . 22 12 105 Gun 138 | . 22 12 104 Cannon . | . . . . Launcher . | . . . . Special 1 | . . . 1 Kinetic 69 | . 12 6 51 Thermal 70 | . 10 6 54 Explosive . | . . . . Electromagnetic . | . . . . Robot Hit Streak 31 | . 6 9 31 Robot Miss Streak 2 | . 2 1 1 Penetration Max . | . . . . Secondary Targets 2 | . . 1 1 Max Gunslinging Chain 1 | . . 1 1 Shots Hit Robots 122 | . 16 10 96 Core Hits 50 | . 11 7 32 Critical Kills . | . . . . Critical Parts Destroyed . | . . . . Critical Strikes 2 | . . . 2 Burn 1 | . . . 1 Destroy 1 | . . . 1 Melee Attacks . | . . . . Impact . | . . . . Slashing . | . . . . Piercing . | . . . . Sneak Attacks . | . . . . Combat Hostiles . | . . . . Follow-up Attacks . | . . . . Damage Inflicted 1702 | . 232 152 1318 Guns 1691 | . 232 152 1307 Cannons . | . . . . Explosions . | . . . . Melee . | . . . . Ramming . | . . . . Kinetic 763 | . 136 73 554 Thermal 939 | . 96 79 764 Explosive . | . . . . Electromagnetic . | . . . . Impact . | . . . . Slashing . | . . . . Piercing . | . . . . Highest Corruption 1 | . 1 1 1 Average Corruption 1 | . 1 1 1 Corruption Purged . | . . . . Corruption Blocked . | . . . . Effects 14 | . 3 3 8 Message Errors 4 | . . 1 3 Matter Fused 4 | . . 1 3 Heat Flow Errors 2 | . 1 . 1 Energy Discharges 2 | . 1 . 1 Data Loss (minor) 2 | . 1 1 . Overload Shots . | . . . . Overflow Damage . | . . . . Projectiles . | . . . . Explosions . | . . . . Melee . | . . . . Knockbacks . | . . . . Impact . | . . . . Kinetic . | . . . . Secondary . | . . . . Self-Inflicted Damage . | . . . . Shots . | . . . . Rammed . | . . . . Targets Rammed . | . . . . Kicked . | . . . . Crushed . | . . . . Highest Temperature 251 | . 251 170 216 Average Temperature 65 | . 75 96 25 Received Heat Transfer 438 | . 27 51 360 Siege Activations . | . . . . Martial Activations . | . . . . Shielding Activations . | . . . . Robots Disrupted . | . . . . Combat Hostiles . | . . . . Robots Corrupted . | . . . . Combat Hostiles . | . . . . Parts Fried . | . . . . Impact Corruptions . | . . . . Robots Melted . | . . . . Combat Hostiles . | . . . . Parts Melted 4 | . . . 4 Heat Transferred 2024 | . 225 185 1614 Parts Sabotaged . | . . . . Parts Stolen . | . . . . Parts Stripped . | . . . . Power Chain Reactions . | . . . . Alert | -11 -10 -10 -10 ------- Run | Yrd Mat Min Sub Maximum Alert Level . | . . . . Low Security (%) 100 | 100 100 100 . Level 1 . | . . . . Level 2 . | . . . . Level 3 . | . . . . Level 4 . | . . . . Level 5 . | . . . . High Security . | . . . . Max Security . | . . . . Peak Influence 61 | . 61 45 . Initial . | . . . . Average 8 | . 9 7 . Influence Increases 368 | . 83 55 230 Destroy 0b10 Robot/C 240 | . 40 40 160 Destroy 0b10 Robot/NC 30 | . 25 5 . Destroy Leader 34 | . 14 10 10 Successful Hack 4 | . 4 . . Lose Combat Pursuer 60 | . . . 60 Influence Decreases 368 | . 83 55 230 Time Decay 348 | . 83 55 210 Lost Part 20 | . . . 20 Squads Dispatched . | . . . . Investigation . | . . . . Extermination . | . . . . Reinforcement . | . . . . Assault . | . . . . Garrison . | . . . . Intercept . | . . . . Searches Triggered . | . . . . Construction Impeded . | . . . . Haulers Reinforced . | . . . . Active Scanning Responses . | . . . . Cargo Convoy Interrupts . | . . . . Stealth | -11 -10 -10 -10 --------- Run | Yrd Mat Min Sub Distress Signals . | . . . . Communications Jammed . | . . . . Distress Signals . | . . . . Times Spotted 32 | . 6 2 24 Peak Tracking Total 6 | . 2 2 6 Tactical Retreats 3 | . . . 3 Traps | -11 -10 -10 -10 ------- Run | Yrd Mat Min Sub Traps Triggered 3 | . 3 . . Indirectly . | . . . . Trap Hack Attempts . | . . . . Triggered . | . . . . Disarmed . | . . . . Reprogrammed . | . . . . Reused . | . . . . Traps Extracted . | . . . . Installed . | . . . . Triggered . | . . . . Machines | -11 -10 -10 -10 ---------- Run | Yrd Mat Min Sub Machines Disabled . | . . . . Max in Single Turn . | . . . . Machines Repaired . | . . . . Machines Dismantled . | . . . . Machines Sabotaged . | . . . . Overloaded Fab Kills . | . . . . Hacking | -11 -10 -10 -10 --------- Run | Yrd Mat Min Sub Machines Accessed 5 | . 3 . 2 Terminals 2 | . 2 . . Fabricators . | . . . . Repair Stations 1 | . 1 . . Recycling Units . | . . . . Scanalyzers . | . . . . Garrison Access . | . . . . Total Hacks 9 | . 6 . 3 Successful 6 | . 3 . 3 Failed 3 | . 3 . . Catastrophic 1 | . 1 . . Database Lockouts . | . . . . Manual . | . . . . Terminals 3 | . 3 . . Fabricators . | . . . . Repair Stations 3 | . 3 . . Recycling Units . | . . . . Scanalyzers . | . . . . Garrison Access . | . . . . Terminal Hacks 4 | . 1 . 3 Record 1 | . . . 1 Open Door 1 | . . . 1 Hauler Manifests 1 | . 1 . . Release Object 1 | . . . 1 Fabricator Hacks . | . . . . Repair Station Hacks 2 | . 2 . . Scan Component 1 | . 1 . . Repair 1 | . 1 . . Recycling Unit Hacks . | . . . . Scanalyzer . | . . . . Garrison Access Hacks . | . . . . Unauthorized Hacks . | . . . . Terminals . | . . . . Fabricators . | . . . . Repair Stations . | . . . . Recycling Units . | . . . . Scanalyzers . | . . . . Garrison Access . | . . . . Data Cores Recovered . | . . . . Used . | . . . . Hacking Detections 3 | . 3 . . Full Trace Events . | . . . . Feedback Events . | . . . . Feedback Blocked . | . . . . Robot Schematics Acquired . | . . . . Robots Built . | . . . . Authchips . | . . . . Time . | . . . . Total Robot Build Rating . | . . . . Part Schematics Acquired . | . . . . Parts Built . | . . . . Authchips . | . . . . Time . | . . . . Total Part Build Rating . | . . . . Parts Repaired 1 | . 1 . . Time 38 | . 38 . . Parts Recycled . | . . . . Recycled Matter . | . . . . Retrieved Matter . | . . . . Retrieved Components . | . . . . Parts Scanalyzed . | . . . . Part Schematics Acquired . | . . . . Parts Damaged . | . . . . Bothacking | -11 -10 -10 -10 ------------ Run | Yrd Mat Min Sub Used RIF Installer . | . . . . Robots Hacked . | . . . . Non-combat . | . . . . Combat . | . . . . Robot Hacks Applied . | . . . . Relay Couplers Released . | . . . . Fabnet Peak Effective % . | . . . . Robots Rewired . | . . . . Allies Hacked . | . . . . Hacks Repelled . | . . . . Allies | -11 -10 -10 -10 -------- Run | Yrd Mat Min Sub Total Allies . | . . . . Largest Group . | . . . . Highest-Rated Group . | . . . . Highest-Rated Ally . | . . . . Total Orders . | . . . . Ally Attacks . | . . . . Total Damage . | . . . . Kills . | . . . . Allies Corrupted . | . . . . Allies Melted . | . . . . Intel | -11 -10 -10 -10 ------- Run | Yrd Mat Min Sub Active Infowar (turns) . | . . . . Robot Analysis Total . | . . . . Derelict Logs Recovered 2 | . . 1 1 Drone Launches . | . . . . Drone Recoveries . | . . . . Exploration | -11 -10 -10 -10 ------------- Run | Yrd Mat Min Sub Turns Passed 2300 | 47 447 329 1477 Spaces Moved 1246 | 39 301 170 736 Core 35 | 18 . . 17 Treads 18 | . . . 18 Legs 1138 | 21 301 170 646 Wheels 55 | . . . 55 Hover . | . . . . Flight . | . . . . Fastest Speed 50 | 50 120 120 110 Average Speed 153 | 87 120 166 168 Slowest Speed 400 | 120 120 190 400 Overloaded Moves . | . . . . Propulsion Burnouts . | . . . . Robots Hopped . | . . . . Potential Cave-ins . | . . . . Cave-ins Triggered . | . . . . Exploration Rate (%) 41 | 3 56 56 49 Regions Visited 3 Branch Regions 2 Pre-discovered Areas 2 | . . . 2 Known Exits Taken . | . . . . Unknown Exits Taken 3 | 1 1 1 . Scrap Searched 1 | . . 1 . Spaces Dug . | . . . . Terrain Destroyed . | . . . . Melee . | . . . . Projectile . | . . . . AOE . | . . . . Terrain Rammed . | . . . . Walls Destroyed . | . . . . Machines Disabled . | . . . . Actions | -11 -10 -10 -10 --------- Run | Yrd Mat Min Sub Total 1499 | 51 366 206 876 Wait 77 | . 38 25 14 Move 1243 | 38 300 169 736 Hop . | . . . . Pick Up 34 | 7 10 4 13 Fast Attach 3 | 1 . . 2 Attach 20 | 5 3 1 11 Detach 5 | . . . 5 Swap 4 | . . . 4 Drop 12 | . 3 1 8 Fire 100 | . 12 6 82 Melee . | . . . . Ram . | . . . . Kick . | . . . . Crush . | . . . . Escape Stasis . | . . . . Rewire . | . . . . Trap . | . . . . Miscellaneous 1 | . . . 1 Route ------- -11/Scrapyard -10/Materials (discovered 2 exits: [*Mat] / [*Min]) -10/Mines -10/Subcaves (discovered 3 exits: [*Mat x2] / [*Rec]) History --------- Turn | Location | Event 12 | -11/Scrapyard | Discovered new exit (range 14) 48 | -11/Scrapyard | Entered Materials 290 | -10/Materials | Discovered new exit (range 15) 305 | -10/Materials | Build established: Mutant 411 | -10/Materials | Repaired Lgt. Nuclear Core 446 | -10/Materials | Discovered new exit (range 7) 495 | -10/Materials | Entered Mines 539 | -10/Mines | Met a Derelict bent on vengeance 577 | -10/Mines | Learned 2 Materials zone layouts 671 | -10/Mines | Found a damaged Exp. Sensor Array with a note attached 675 | -10/Mines | Found Prototype Device 815 | -10/Mines | Discovered new exit (range 6) 824 | -10/Mines | Entered Subcaves 825 | -10/Subcaves | Approached by a straggling Scientist 902 | -10/Subcaves | Discovered new exit (range 13) 949 | -10/Subcaves | A swath of the cavern ceiling suddenly collapsed 1108 | -10/Subcaves | Learned location of Storage (-7) 1133 | -10/Subcaves | Discovered new exit (range 14) 1140 | -10/Subcaves | Learned location of Zion (-6) 1140 | -10/Subcaves | Met a Zionite searching for "candidates" 1286 | -10/Subcaves | A swath of the cavern ceiling suddenly collapsed 1425 | -10/Subcaves | Lost 3 parts (1p1n1w) 1434 | -10/Subcaves | Shifting Twisted Machinery released Spk. Treads 1586 | -10/Subcaves | Discovered new exit (range 11) 1600 | -10/Subcaves | Core integrity fell below 50% 1777 | -10/Subcaves | Released subatomizers from SUBCON Basin 2212 | -10/Subcaves | Core integrity fell below 20% 2301 | -10/Subcaves | Destroyed by 9B-I9A(R) with Subdweller Machine Gun Last Messages --------------- Acquired Sub. Optics. E9M FOQC/6%=QRLBBNQZUMNWGX%U Sub. Monowheel shoots sparks and powers down. Lgt. Assault Rifle destroyed. Sub. Machine Gun shoots sparks and powers down. H0-3SJ(R) destroyed. QW-TJB(R) destroyed. Dropped Sub. Optics. Acquired Flamer. Acquired Spk. Treads. Acquired Sub. Machine Gun. Acquired 34 matter. Acquired Sub. Monowheel. Acquired 17 matter. Acquired 3 matter. Subatomizers dissect the Disposable Heat Sink. Mak. Light Armor Plating destroyed. Flamer destroyed. Sub. Monowheel melted. IE-8YZ(R) destroyed. Map ----- +----------------------------------------------------+ | ?????????????????????????????????????????????????? | | ?????????????????????????????????????????????????? | | ?????????????????????????????????????????????????? | | ?????????????????????????????????????????????????? | | ?????????????????????????????????????????????????? | | ?????????????????????????????????????????????????? | | ?????????????????????????????????????????????????? | | ?????????????????????????????????????????????????? | | ?????????????????????????????????????????????????? | | ?????????????????????????????????????????????????? | | ?????????????????????????????????????????????????? | | ?????????????????????????????????????????????????? | | ?????????????????????????????????????????????????? | | ?????????????????????????????????????????????????? | | ?????????????????????????????????????????????????? | | ?????????????????????????????????????????????????? | | ???????????????? ? "?????????????????????????????? | | ???????????????# """????????????????????????????? | | ??????????????? """"#???????????????????????????? | | ????????????????#" ""#####??????????????????????? | | ????????????????# "" !& #?????????????##???????? | | ????????????????# "" ! #???????????? ##??????? | | ????????????????## ###% ##???????????? #??????? | | ?????????????????????## *#???????###??# #??????? | | ????????????????????## ! ##??????# ### ????????? | | ???????????????????## &@#???#### #?????????? | | ???????????????????# R%##### #??????????? | | ???????????????????# & ##???????? # | | ???????????????????# ###????? | | ???????????????????## #???? | | ????????????????????## #????# | | ?????????????????????# ##### #???# #? | | ?????????????????????# ###### #####" ?? | | ?????????????????????#### #### ##?#""" ??? | | ????????????????????????### "##??# ???? | | ??????????????????????????## ""##??#""#????? | | ???????????????????????????# " #### ##???? | | ???????????????????????????## "## ##??? | | ????????????????????????????# " ##?? | | ????????????????????????????# " ##? | | ????????????????????????????## " #? | | ?????????????????????????????## " " " ###? | | ??????????????????????????????# " """ ##??? | | ??????????????????????????????## " " ####???? | | ???????????????????????????????# " ##?????? | | ???????????????????????????????# ##????? | | ?????????????????????????????# ## ####?? | | ???????????????????????????#### ### """"""""? | | ???????????????????????##?## ## #?# #" ?? | | ?????????????????????### ## ####??## ##?#?? | +----------------------------------------------------+ Best States ------------- Heat Dissipation 25 Energy Generation 15 Energy Capacity 250 Matter Stores 300 Matter Capacity 300 Sight Range 16 Terrain Scan Density 10 Armor Coverage 150 Resistance: KI 20 Resistance: TH 20 Resistance: EX 20 Resistance: EM 20 Resistance: I 20 Resistance: S 20 Resistance: P 20 Evasion (%) 55 Recoil Reduction 1 Offensive Hacking 10 Item Schematics ----------------- None Robot Schematics ------------------ None Fabricated ------------ Nothing Repaired ---------- Lgt. Nuclear Core | 58% | -10/Materials Alien Tech Used ----------------- None Achievements -------------- None Challenges ------------ None Game ------ Seed HypertargetingVariableScythe Manual? 0 Play Time 00:14:01 Cumulative 84.2 hours Start 2025.07.27 @ 16:28:25 End 2025.07.27 @ 16:41:49 Sessions 1 Manual Loads 0 Difficulty Adventurer Special Mode None Game No. 109 Rogue 13 Adventurer 96 Explorer 0 Win Type - Total 0 Types 0/0/0/0/0/0/0/0/0/0 Lore% 63 Gallery% 58 Achievement% 46 Wizard Run 0 Options --------- Layout 1 ASCII 0 Keyboard 0 Movement Mouse Keybinds 0 Fullscreen 1 Font 32/SmallcapsGlow Map View 50x35 Zoom Use 0% Tactical HUD 0 Map Filters NONE Filters NONE Steam 1 RUN: 4514c101-9996-49a4-8503-50db27a720ba